{"text_format":"1","workbook":"xlsx","n_sheets":15,"sheets":["Opći podaci","Tablica 2","Tablica 3","Tablica 4","Tablica 5","Tablica 6","Tablica 7","Tablica 8","Tablica 9","Tablica 10","Tablica 11","Tablica 12","Tablica 13","Napomene","pomocni_sheet"],"not_rendered":{"charts":0,"images":0,"macros":1,"external_links":0,"defined_names":3,"comments":0,"pivot_tables":0},"unopened":[],"bounds":{"document_bytes":16777216,"sheet_cells":100000,"rows_first":2000,"rows_last":500,"rows_between":2000,"halvings":0,"cell_chars":16384,"cell_head_chars":4096},"cells_cut":0,"cells_raw":0,"read":"whole","date_system":"1900"}

{"sheet":"Opći podaci","index":0,"n_rows":80,"n_cols":12,"rows_kept":80,"cut":false,"hidden":false,"merged":[[79,1,79,11],[66,7,66,8],[12,2,13,7],[13,9,13,11],[1,1,2,3],[1,4,2,6],[1,7,1,11],[2,7,2,11],[3,1,3,11],[4,1,4,11],[5,1,5,11],[7,9,7,11],[8,9,8,11],[10,8,10,11],[11,8,11,11],[20,2,20,3],[20,6,20,7],[22,1,22,2],[22,3,22,7],[14,9,14,11],[15,9,15,10],[16,2,16,3],[16,6,16,7],[18,2,18,3],[18,6,18,7],[64,1,64,2],[42,1,42,4],[24,1,24,4],[38,1,38,2],[40,1,40,3],[33,4,33,7]]}
[]
[null,"R E P U B L I K A  H R V A T S K A\nDRŽAVNI ZAVOD ZA STATISTIKU",null,null,"10000 Zagreb, Ilica 3\nInternetske stranice: http://www.dzs.hr",null,null,"Obrazac MZ-1"]
[null,null,null,null,null,null,null,"Istraživanje se provodi na temelju Zakona o službenoj statistici (NN, br. 25/20.).  \n"]
[null,"IZVJEŠTAJ MUZEJA I MUZEJSKIH ZBIRKI ZA 2021."]
[null,"Obveza podnošenja izvještaja temelji se na članku 45. Zakona o službenoj statistici (NN, br. 25/20.). Odbijanje davanja podataka, davanje nepotpunih i netočnih podataka ili nedavanje podataka u propisanom roku povlači prekršajne odredbe iz članka 76. navedenog Zakona."]
[null,"Podaci koje dajete u ovom izvještaju koristit će se isključivo za statističke svrhe i neće se objavljivati kao pojedinačni."]
[]
[null,"Vrsta posla","2KK1",null,"Razdoblje",1,"Godina",2021]
[null,null,null,null,null,null,null,null,null,"(ispunjava DZS)"]
[]
[null,"1. PODACI O JEDINICI ZA KOJU SE PODNOSI IZVJEŠTAJ (POSLOVNI SUBJEKT)"]
[null,null,null,null,null,null,null,null,"OIB"]
[null,"a) NAZIV MUZEJA (muzejske zbirke) "]
[]
[null,null,null,null,null,null,null,null,null,"MB"]
[]
[null,"b) Županija",null,null,"Grad/općina"]
[null,null,null,null,null,null,null,null,null,null,null,"DPS"]
[null,"Naselje",null,null,"Ulica i broj"]
[]
[null,"Telefon ",null,null,"Elektronička pošta "]
[]
[null,"Osoba odgovorna za ispunjavanje obrasca:"]
[]
[null,"JE LI MUZEJ TIJEKOM GODINE BIO OTVOREN ZA JAVNOST u 2021.",null,null,null,null,null,"--odaberite--",{"$f":"HYPERLINK(\"#\"&ADDRESS(ROW(),COLUMN()-1),CHAR(128))","v":"€"}]
[null,null,null," (odaberite jedan odgovor, DA = 1, NE = 2): "]
[null,"*Ako ste bili zatvoreni zbog potresa i/ili epidemije prouzročene koronavirusom, navedite broj dana koliko muzej nije radio:"]
[]
[null,"OSNIVAČ MUZEJA (odaberite jedan odgovor): ",null,null,"1. Republika Hrvatska",null,null,"-- odaberite --",{"$f":"HYPERLINK(\"#\"&ADDRESS(ROW(),COLUMN()-1),CHAR(128))","v":"€"}]
[null,null,null,null,"2. jedinica lokalne uprave i samouprave"]
[null,null,null,null,"3. domaća pravna ili fizička osoba"]
[null,null,null,null,"4. strana pravna ili fizička osoba"]
[null,null,null,null,"5. pravna osoba u pretežitom vlasništvu Republike Hrvatske"]
[null,null,null,null,"6. pravna osoba u pretežitom vlasništvu jedinice lokalne i područne (regionalne) samouprave"]
[null,null,null,null,"7. neprofitna organizacija"]
[null,null,null,null,"8. više osnivača (u jednakom omjeru)"]
[null,"* U slučaju da ima više osnivača, ako nisu u jednakom omjeru, treba navesti samo većinskog osnivača."]
[]
[null,"GODINA OSNUTKA MUZEJA : "]
[]
[null,"GODINA OTVARANJA MUZEJA ZA JAVNOST : "]
[]
[null,"Podjela prema teritorijalnoj pokrivenosti (označite jedan odgovor): ",null,null,null,null,"1. nacionalni","-- odaberite --",{"$f":"HYPERLINK(\"#\"&ADDRESS(ROW(),COLUMN()-1),CHAR(128))","v":"€"}]
[null,null,null,null,null,null,"2. regionalni"]
[null,null,null,null,null,null,"3. lokalni"]
[]
[null,"Podjela prema vrsti građe (označite jedan odgovor): ",null,null,null,"1.","opći","-- odaberite --",{"$f":"HYPERLINK(\"#\"&ADDRESS(ROW(),COLUMN()-1),CHAR(128))","v":"€"}]
[null,null,null,null,null,null,"   specijalizirani:"]
[null,null,null,null,null,"2.","povijesni"]
[null,null,null,null,null,"3.","arheološki"]
[null,null,null,null,null,"4.","etnografski"]
[null,null,null,null,null,"5.","prirodoslovni"]
[null,null,null,null,null,"6.","tehnički i tehnološki"]
[null,null,null,null,null,"7.","umjetnički"]
[null,null,null,null,null,"8.","ekomuzej"]
[null,null,null,null,null,"9.","ostalo (memorijalni, biografski i sl. )"]
[]
[null,"INFORMACIJSKA I KOMUNIKACIJSKA TEHNOLOGIJA "]
[]
[null,"Je li muzej opremljen barem jednim računalom ili tabletom?  ",null,null,null,null,"1. da","--odaberite--",{"$f":"HYPERLINK(\"#\"&ADDRESS(ROW(),COLUMN()-1),CHAR(128))","v":"€"}]
[null,"(označite jedan odgovor)",null,null,null,null,"2. ne"]
[]
[null,"Ako jest, računalo se koristi za sljedeće svrhe:",null,null,null,null,"1. administrativne potrebe","--odaberite--",{"$f":"HYPERLINK(\"#\"&ADDRESS(ROW(),COLUMN()-1),CHAR(128))","v":"€"}]
[null,"(moguće odabrati nekoliko odgovora)",null,null,null,null,"2. informiranje posjetilaca","--odaberite--",{"$f":"HYPERLINK(\"#\"&ADDRESS(ROW(),COLUMN()-1),CHAR(128))","v":"€"}]
[null,"(treba označiti svaki od pojedinih točnih odgovora)",null,null,null,null,"3. za bazu podataka koja služi kao elektronički inventar","--odaberite--",{"$f":"HYPERLINK(\"#\"&ADDRESS(ROW(),COLUMN()-1),CHAR(128))","v":"€"}]
[null,null,null,null,null,null,"4. za pristup internetu (za zaposlenike) ","--odaberite--",{"$f":"HYPERLINK(\"#\"&ADDRESS(ROW(),COLUMN()-1),CHAR(128))","v":"€"}]
[null,null,null,null,null,null,"5. ostalo (upišite svrhu): "]
[]
[null,"Je li muzej predstavljen na internetu? (označite jedan odgovor):      ",null,null,null,null,"1. da","--odaberite--",{"$f":"HYPERLINK(\"#\"&ADDRESS(ROW(),COLUMN()-1),CHAR(128))","v":"€"}]
[null,null,null,null,null,null,"2. ne"]
[]
[null,"Ako jest, predstavljen je (moguće odabrati više odgovora): ",null,null,null,null,"1. na vlastitim mrežnim stranicama","--odaberite--",{"$f":"HYPERLINK(\"#\"&ADDRESS(ROW(),COLUMN()-1),CHAR(128))","v":"€"}]
[null,"(treba označiti svaki od pojedinih točnih odgovora)",null,null,null,null,"2. u sklopu drugih mrežnih stranica ","--odaberite--",{"$f":"HYPERLINK(\"#\"&ADDRESS(ROW(),COLUMN()-1),CHAR(128))","v":"€"}]
[null,null,null,null,null,null,"3. na društvenim mrežama","--odaberite--",{"$f":"HYPERLINK(\"#\"&ADDRESS(ROW(),COLUMN()-1),CHAR(128))","v":"€"}]
[]
[null,"Je li mrežna stranica muzeja: ",null,null,null,"1.","povezana s jednim muzejskim portalom ","--odaberite--",{"$f":"HYPERLINK(\"#\"&ADDRESS(ROW(),COLUMN()-1),CHAR(128))","v":"€"}]
[null,null,null,null,null,"2.","povezana s više muzejskih portala"]
[null,null,null,null,null,"3.","nije povezana?"]
[]
[null,"Poštovani!\n\nCilj je ovog istraživanja dobivanje podataka o muzejima i muzejskim zbirkama na području Republike Hrvatske u 2021.                               \nStatistički izvještaj ispunjavaju svi muzeji i muzejske zbirke koje su radile u 2021., bez obzira na to izlažu li predmete i jesu li otvoreni za javnost.\nUmjetničke galerije koje imaju muzejsku građu obrađuju se kao umjetnički muzeji.\nZa sve eventualne nejasnoće možete se konzultirati s Državnim zavodom za statistiku Republike Hrvatske, Službom statistike obrazovanja, kulture i znanosti, telefonom (01) 4893-541  ili elektroničkom poštom na adresu bralicg@dzs.hr.\n\nZahvaljujemo na suradnji!"]

{"sheet":"Tablica 2","index":1,"n_rows":6,"n_cols":14,"rows_kept":6,"cut":false,"hidden":false,"merged":[[1,0,2,0],[1,1,2,1],[1,2,1,12],[1,13,2,13],[0,0,0,13]]}
["Tablica 2.   PREDMETI PO VRSTAMA ZBIRKI U 2021."]
["Red. broj sloga",null,"Stalni postav",null,null,null,null,null,null,null,null,null,null,"Neinventarizirani predmeti"]
[null,null,"ukupno \n(2 - 11)","prirodo-\nslovne","povijesne","kulturno-povijesne","arheološke","numizmatičke","etnografske","umjetničke","primijenjenih umjetnosti","tehničke","ostale"]
[null,"a",1,2,3,4,5,6,7,8,9,10,11,12]
[1,"Ukupno",{"$f":"D5+E5+G5+H5+F5+I5+K5+J5+L5+M5","v":0}]
[2,"Izloženi",{"$f":"D6+E6+F6+G6+H6+I6+J6+K6+L6+M6","v":0}]

{"sheet":"Tablica 3","index":2,"n_rows":8,"n_cols":15,"rows_kept":8,"cut":false,"hidden":false,"merged":[[0,0,1,4],[7,0,7,11],[2,14,3,14],[2,1,3,1],[2,2,2,5],[2,0,3,0],[2,11,3,11],[2,6,2,10],[2,13,3,13],[2,12,3,12]]}
["3. BROJ NOVIH PREDMETA U FUNDUSU MUZEJA U 2021."]
[]
[null,"Ukupno (2, 6, 11 - 14)","Kupnja",null,null,null,"Donacije",null,null,null,null,"Terensko istraživanje","Zamjena","Ustupanje1)","Nasljeđe i ostalo"]
[null,null,"ukupno (3 - 5)","od toga djela živućih autora","u Republici Hrvatskoj","uvoz iz inozemstva","ukupno (7-10)","od tijela državne i lokalne uprave","od neprofitnih organizacija","od domaćih fizičkih i pravnih osoba","od stranih fizičkih i pravnih osoba"]
["a",1,"2 ",3,4,5,6,7,8,9,10,11,12,13,14]
["Broj predmeta",{"$f":"C6+G6+L6+M6+N6+O6","v":0},{"$f":"D6+E6+F6","v":0},null,null,null,{"$f":"H6+I6+J6+K6","v":0}]
[]
["1) Predmeti koji se nalaze u fundusu muzeja, no muzej nije vlasnik, nego su dani na privremenu ili trajnu pohranu"]

{"sheet":"Tablica 4","index":3,"n_rows":11,"n_cols":6,"rows_kept":11,"cut":false,"hidden":false,"merged":[[0,0,0,5],[9,1,9,2],[10,0,10,4],[1,0,3,0],[1,1,3,1],[1,2,1,5],[2,2,3,2],[2,3,3,3],[2,4,2,5]]}
["Tablica 4. BROJ POSJETITELJA (STALNOG POSTAVA) U 2021."]
["Red. broj sloga",null,"Posjetitelji"]
[null,null,"ukupno","pojedinačni posjeti","skupni posjeti1)"]
[null,null,null,null,"školski","ostali"]
[null,"a",1,2,3,4]
[1,"Ukupno",{"$f":"D6+E6+F6","v":0},{"$f":"D7+D8+D9","v":0},{"$f":"E8+E9","v":0},{"$f":"F8+F9","v":0}]
[2,"Plaćaju ulaznicu",{"$f":"D7","v":0}]
[3,"Plaćaju ulaznicu s popustom",{"$f":"D8+E8+F8","v":0}]
[4,"Ne plaćaju ulaznicu",{"$f":"D9+E9+F9","v":0}]
[]
["1) Molimo da upišete podatke o broju posjetitelja, a ne o broju skupina. Podatke za ovu tablicu treba dati na osnovi evidencije o broju posjetitelja. Ako se ne raspolaže evidencijom za skupne posjete, treba dati procjenu.\n"]

{"sheet":"Tablica 5","index":4,"n_rows":8,"n_cols":9,"rows_kept":8,"cut":false,"hidden":false,"merged":[[0,0,0,8],[7,0,7,3],[1,0,3,0],[1,1,3,1],[1,2,1,5],[1,6,1,8],[2,2,2,3],[2,4,2,5],[2,6,3,6],[2,7,3,7],[2,8,3,8]]}
["Tablica 5. POVREMENE IZLOŽBE I POSJETITELJI U 2021.1)"]
["Red. broj sloga",null,"Izložbe u muzeju",null,null,null,"Izložbe izvan muzeja "]
[null,null,"vlastite",null,"gostovanja iz",null,"u drugim prostorima u mjestu sjedišta","na drugim mjestima u Republici Hrvatskoj","u inozemstvu"]
[null,null,"vlastiti fundus","ostalo","drugog muzeja ili zbirke Republike Hrvatske","inozemstva"]
[null,"a",1,2,3,4,5,6,7]
[1,"Broj izložaba"]
[2,"Broj posjetitelja"]
["1) Upišite podatke za izložbe koje nisu stalan postav i posjetitelje tih izložaba."]

{"sheet":"Tablica 6","index":5,"n_rows":10,"n_cols":10,"rows_kept":10,"cut":false,"hidden":false,"merged":[[10,0,10,5],[9,0,9,6],[0,0,0,9],[2,9,3,9],[1,2,1,9],[2,8,3,8],[1,0,3,0],[1,1,3,1],[2,2,2,3],[2,4,2,5],[2,6,3,6],[2,7,3,7],[8,0,8,5]]}
["Tablica 6. ONLINE DOSTUPNOST FUNDUSA, POVREMENIH IZLOŽBI I DRUGIH POPRATNIH DOGAĐANJA U 2021."]
["Ž",null,"Online sadržaj"]
[null,null,"vlastiti fundus online",null,"povremene izložbe",null,"edukacijske radionice za djecu","predavanja i projekcije","stručna vodstva","ostalo"]
[null,null,"vlastiti fundus / pojedini predmeti","online izložbe iz vlastitog fundusa","drugog muzeja ili zbirke Republike Hrvatske","inozemstva"]
[null,"a",1,2,3,4,5,6,7,8]
[1,"Broj jedinica1)"]
[2,"Broj posjetitelja2)"]
[]
["1) Broj sadržaja dostupnih online / predmeti iz fundusa, online izložbe, druga događanja/online sadržaj može biti na mrežnim stranicama muzeja i/ili na nekim od društvenih mreža: Facebook, Twitter, Youtube, Instagram, Tik Tok, LinkedI itd."]
["2) Ako nemate alat za praćenje, u online posjetama pojedinom sadržaju na mrežnim stranicama ostavite prazno polje."]

{"sheet":"Tablica 7","index":6,"n_rows":9,"n_cols":11,"rows_kept":9,"cut":false,"hidden":false,"merged":[[0,0,0,10],[9,0,9,6],[8,0,8,3],[2,2,2,5],[2,6,2,7],[1,0,3,0],[1,1,3,1],[1,8,1,10],[2,8,3,8],[2,9,3,9],[2,10,3,10],[1,2,1,7]]}
["Tablica 7. DRUGE KULTURNE MANIFESTACIJE, VODSTVA, PREDAVANJA I EDUKACIJSKE RADIONICE U 2021."]
["Red. broj sloga",null,"Događanja za odrasle",null,null,null,null,null,"Događanja za djecu i mlade"]
[null,null,"u organizacijji matične institucije / muzeja",null,null,null,"u organizaciji druge kuturne institucije",null,"edukacijske radionice i vodstva po izložbi","predstave i projekcije","ostalo"]
[null,null,"promocije, predavanja i okrugli stolovi","stručna vodstva","koncerti, predstave i projekcije","ostalo","promocije, predavanja i okrugli stolovi","kocerti, predstave i projekcije"]
[null,"a",1,2,3,4,5,6,7,8,9]
[1,"Broj događanja"]
[2,"Broj posjetitelja 1)"]
[]
["1) U slučaju da nemate točne podatke, napišite procjenu posjetitelja."]

{"sheet":"Tablica 8","index":7,"n_rows":28,"n_cols":8,"rows_kept":28,"cut":false,"hidden":false,"merged":[[0,0,0,8],[3,1,4,1],[9,1,10,1],[15,1,16,1],[27,0,27,7],[5,1,6,1],[7,1,8,1],[11,1,12,1],[13,1,14,1],[18,0,18,7],[21,0,21,7],[23,0,23,7],[25,0,25,7],[19,0,19,7]]}
["Tablica 8. ZAPOSLENI, ANGAŽIRANI NA TEMELJU UGOVORA O DJELU I VOLONTERI U 2021."]
["Red. broj sloga",null,null,"Ukupno 2 do 5","Stručna muzejska zvanja","Stručni","Pomoćni stručni","Ostali"]
[null,null,"a",1,2,3,4,5]
[1,"zaposleni s punim radnim vremenom (stanje 31. prosinca 2021.)","svega",{"$f":"E4+F4+G4+H4","v":0}]
[2,null,"žene",{"$f":"E5+F5+G5+H5","v":0}]
[3,"zaposleni s kraćim od punoga radnog vremena \n(od 1. siječnja do 31. prosinca 2021.)","svega",{"$f":"E6+F6+H6+G6","v":0}]
[4,null,"žene",{"$f":"E7+F7+G7+H7","v":0}]
[5,"ekvivalent pune zaposlenosti1)","svega",0]
[6,null,"žene",0]
[7,"angažirani na temelju ugovora o djelu  (od 1. siječnja do 31. prosinca 2021.)","svega",0]
[8,null,"žene",0]
[9,"ekvivalent pune angažiranosti1)","svega",0]
[10,null,"žene",0]
[11,"studenti2) ","svega"]
[12,null,"žene"]
[13,"volonteri","svega",{"$f":"E16+F16+G16+H16","v":0}]
[14,null,"žene",{"$f":"E17+F17+G17+H17","v":0}]
[]
["1) Ekvivalent pune zaposlenosti / angažiranosti izračunava se ovako: a) za zaposlene s kraćim od punoga radnog vremena, npr. jedan zaposlenik s pola radnog vremena i jedan s četvrtinom radnog vremena daje ekvivalent 0,50 + 0,25 = 0,75; b) za angažirane na osnovi ugovora o djelu, npr. jedna osoba koja je angažirana na šest mjeseci, tj. pola godine i šest osoba koje su angažirane po jedan mjesec daju ekvivalent 0,50 + 6 x 1/12 = 1."]
["2) Studenti još nemaju završeno obrazovanje te se upisuju pod ostale zaposlene. Upisuju se svi angažirani studenti bez obzira na trajanje ugovora."]
[]
["\"Stručna muzejska zvanja\": kustos, viši kustos i muzejski savjetnik"]
[]
["\"Stručni\": muzejski pedagog, viši muzejski pedagog, muzejski pedagog savjetnik, dokumentarist, viši dokumentarist, dokumentarist savjetnik informatičar, viši informatičar, informatičar savjetnik, restaurator, viši restaurator, restaurator savjetnik, voditelj marketinga, viši voditelj marketinga, savjetnik za marketing, voditelj odnosa s javnošću, viši voditelj odnosa s javnošću, savjetnik za odnose s javnošću, diplomirani knjižničar, viši knjižničar, knjižničarski savjetnik, arhivist, viši arhivist, arhivski savjetnik i drugi stručnjaci ovisno o potrebama muzeja i galerije te muzeja, galerije i zbirke unutar pravne osobe"]
[]
["\"Pomoćni stručni\": preparator, viši preparator, muzejski tehničar, viši muzejski tehničar, fotograf, viši fotograf, pomoćni knjižničari, knjižničar, arhivski tehničar, viši arhivski tehničar i druge stručne osobe ovisno o potrebama muzeja i galerije te muzeja, galerije i zbirke unutar pravne osobe"]
[]
["\"Ostali\": administrativni i pomoćni zaposlenici"]

{"sheet":"Tablica 9","index":8,"n_rows":9,"n_cols":8,"rows_kept":9,"cut":false,"hidden":false,"merged":[[8,0,8,7],[1,0,2,0],[0,0,0,8],[1,1,2,1]]}
["Tablica 9. ZAPOSLENI S PUNIM RADNIM VREMENOM U 2021., prema spolu i dobnim skupinama1)"]
["Red. broj sloga",null,null,"Dobna skupina ispod 25 godina starosti","Dobna skupina 25 - 34","Dobna skupina 35 - 44","Dobna skupina 45 - 54","Dobna skupina iznad 54 godina starosti"]
[null,null,"a",1,2,3,4,5]
[1,"Zaposleni s punim radnim vremenom ukupno","svega"]
[2,"Zanimanja s stručnim muzejskim zvanjem","svega"]
[3,"Druga stručna zanimanja","svega"]
[4,"Pomoćna i administrativna zanimanja","svega"]
[]
["1) Za definicije zanimanja pogledajte objašnjenja ispod tablice 8."]

{"sheet":"Tablica 10","index":9,"n_rows":10,"n_cols":13,"rows_kept":10,"cut":false,"hidden":false,"merged":[[8,0,8,5],[7,0,7,5],[9,0,9,6],[0,0,0,12]]}
["Tablica 10. BROJ I POVRŠINA PROSTORIJA KOJIMA SE MUZEJ KORISTI U 2021."]
["Red. broj sloga",null,"Ukupno (2 - 11)","Izložbene prostorije","Muzejska čuvaonica","Radionice i laboratoriji","Knjižnica i čitaonica3)","Multimedijalna dvorana","Muzejska trgovina","Prostor cafe bara / restorana","Ostale prostorije1)","Izdvojeni lokaliteti u sklopu matičnog muzeja","Izvan muzeja na otvorenome"]
[null,null,1,2,3,4,5,6,7,8,9,10,11]
[1,"Broj",{"$f":"D4+F4+E4+G4+H4+I4+J4+K4+L4+M4","v":0}]
[2,"Površina, m2",{"$f":"D5+E5+F5++G5+H5+I5+J5+K5+L5+M5","v":0}]
[3,"Od toga namijenjeno za komercijalne usluge, m2 ",{"$f":"D6+G6+H6+J6+K6+L6+M6","v":0}]
[]
["1) Prostori predvorja i drugi prostori unutar muzeja koji nisu namijenjeni muzejskoj djelatnosti"]
["2) Prostorije muzeja koje se ustupaju za najam izložbene ili komercijalne djelatnosti"]
["3) Knjižnice muzeja koje su namijenjene široj ili stručnoj javnosti, otvorene unutar nekoga radnog vremena ili uz prethodnu najavu"]

{"sheet":"Tablica 11","index":10,"n_rows":8,"n_cols":10,"rows_kept":8,"cut":false,"hidden":false,"merged":[[5,6,5,7],[6,0,6,9],[0,0,0,9],[7,0,7,9]]}
["Tablica 11. IZDAVAČKA DJELATNOST MUZEJA U 2021."]
["Red. broj sloga",null,"Zbornici, anali","Katalozi zbirki","Katalozi izložaba","Muzejski vodiči","Plakati1)","Elektroničke publikacije","Ostali muzejski suveniri2)","Ostalo"]
[7,"a",1,2,3,4,5,6,7,8]
[1,"Broj",null," "]
[2,"Naklada"]
[]
["1) Umjetnički, izložbeni plakati"]
["2) Razglednice, kopije, reprodukcije, suveniri, magneti i drugi praktični predmeti s reprintom muzejskoga ili izložbenog eksponata "]

{"sheet":"Tablica 12","index":11,"n_rows":16,"n_cols":3,"rows_kept":16,"cut":false,"hidden":false,"merged":[[15,0,15,2],[0,0,0,2]]}
["Tablica 12. GODIŠNJI PRIHOD PREMA IZVORIMA U 2021. "]
["Red. broj sloga","Izvor prihoda","Iznos u kunama bez lipa"]
[null,"a",1]
[1,"Državni proračun"]
[2,"Županijski proračun"]
[3,"Gradski / općinski proračun"]
[4,"Neprofitne organizacije i zajednice"]
[5,"Europski projekti (samo dio iz sredstava EU-a) 1)"]
[6,"Prihod od ulaznica za izložbe (stalne i povremene)"]
[7,"Prihod od ulaznica za druge vezane djelatnosti i/ili turističko-povijesne lokalitete u sklopu muzeja"]
[8,"Prihod od muzejske trgovine: prodaja publikacija,  replika i drugih suvenira i sl.)"]
[9,"Prihod od ustupanja prostora za kulturne ili druge sadržaje"]
[10,"Ostalo (sponzori, donatori i sl.)"]
[11,"Ukupno",{"$f":"C13+C12+C11+C10+C9+C8+C7+C6+C5+C4","v":0}]
[]
["1) Dio prihoda koji je izravno iz fondova EU-a navodite za navedeno izvještajno razdoblje, a dio koji  je sufinanciran iz proračuna Republike Hrvatske treba prikazati pod 1. državni proračun."]

{"sheet":"Tablica 13","index":12,"n_rows":19,"n_cols":3,"rows_kept":19,"cut":false,"hidden":false,"merged":[[15,0,15,2],[16,0,16,2],[17,0,17,2],[18,0,18,2],[0,0,0,2]]}
["Tablica 13. GODIŠNJI IZDACI (TROŠKOVI) U 2021. "]
["Red. broj sloga","Vrsta izdatka","Iznos u kunama bez lipa"]
[null,"a",1]
[1,"Tekući izdaci (troškovi režija, troškovi održavanja i popravaka, drugi potrošni i uredski materijali, službena putovanja itd.)"]
[2,"Trošak zaposlenika; bruto plaće, trošak prijevoza  i druga plaćanja zaposlenicima1) "]
[3,"Trošak rada za vanjske suradnike (virmanom, ugovor o djelu, autorski, studentski itd.)"]
[4,"Izdaci ulaganja u muzejski postav i/ili povremene izložbe2) "]
[5,"Trošak najma prostora za muzej"]
[6,"Otkup muzejske građe3)"]
[7,"Zaštita muzejske građe4)"]
[8,"Digitalizacjija i informatizacija"]
[9,"Troškovi investicijskog održavanja pokretne i nepokretne imovine"]
[10,"Ostalo"]
[11,"Ukupno",{"$f":"C13+C12+C11+C10+C9+C8+C7+C6+C5+C4","v":0}]
[]
["1) Drugi izdaci za zaposlenike, kao npr.  subvencije za obrazovanje, školarine, trošak seminara, tečajevi, predavanja itd."]
["2) Uključuje publikacije, tisak drugih materijala, trošak oglašavanja i uređenja izlagačkog prostora. Ne uključuje honorare vanjskih suradnika. Honorar treba uključiti pod točku 3."]
["3) Kod donacija, molimo, navedite procjenu vrijednosti."]
["4) Ne uključuje honorar ili uslugu vanjskog suradnika koji je radio na zaštiti i restauraciji. Honorar treba uključiti pod točku 3."]

{"sheet":"Napomene","index":13,"n_rows":13,"n_cols":1,"rows_kept":13,"cut":false,"hidden":false,"merged":[[12,0,12,3],[13,0,13,3],[1,0,1,9],[0,0,0,9],[3,0,3,3],[6,0,6,3],[9,0,9,3],[10,0,10,3]]}
["Napomene i prijedlozi  (upišite u polje ispod):"]
[]
[]
["Zahvaljujemo na izdvojenom vremenu."]
[]
[]
["U Zagrebu, _______________2022."]
[]
[]
["Obrazac ispunio:"]
[]
[]
["Kontaktni telefon:"]

{"sheet":"pomocni_sheet","index":14,"n_rows":10,"n_cols":27,"rows_kept":10,"cut":false,"hidden":true,"merged":[]}
[]
["-- odaberite --",null,{"$f":"IF(B1=\"\", \"--odaberite--\")","v":"--odaberite--"},null,{"$f":"IF(D1=\"\", \"--odaberite--\")","v":"--odaberite--"},null,null,{"$f":"IF(G1=\"\", \"--odaberite--\")","v":"--odaberite--"},null,null,{"$f":"IF(J1=\"\", \"--odaberite--\")","v":"--odaberite--"},null,{"$f":"IF(L1=\"\", \"--odaberite--\")","v":"--odaberite--"},null,{"$f":"IF(N1=\"\", \"--odaberite--\")","v":"--odaberite--"},null,{"$f":"IF(P1=\"\", \"--odaberite--\")","v":"--odaberite--"},null,null,{"$f":"IF(S1=\"\", \"--odaberite--\")","v":"--odaberite--"},null,{"$f":"IF(U1=\"\", \"--odaberite--\")","v":"--odaberite--"},null,{"$f":"IF(W1=\"\", \"--odaberite--\")","v":"--odaberite--"},null,null,{"$f":"IF(Z1=\"\", \"--odaberite--\")","v":"--odaberite--"}]
[1,null,1,null,1,null,null,1,null,null,1,null,2,null,3,null,4,null,null,1,null,2,null,3,null,null,1]
[2,null,2,null,2,null,null,2,null,null,null,null,null,null,null,null,null,null,null,null,null,null,null,null,null,null,2]
[3,null,null,null,3,null,null,3]
[4,null,null,null,null,null,null,4]
[5,null,null,null,null,null,null,5]
[6,null,null,null,null,null,null,6]
[7,null,null,null,null,null,null,7]
[8,null,null,null,null,null,null,8]